fUSD/lending_fUSD_20240419
["ID","MTS","AMOUNT","RATE_DAILY","PERIOD"]
[322940884,1713535883508,-3112.03,0.00015719,2]
[322940885,1713535883518,-1600.55,0.00015719,2]
[322940886,1713535883527,-15522.32,0.00015719,2]
[322940887,1713535883537,-6009.88,0.00015719,2]
[322940888,1713535883546,-988.64,0.00015719,2]
[322940889,1713535883556,-8987.15,0.00015719,2]
[322940890,1713535883567,-9398.74,0.00015719,2]
[322940891,1713535883577,-1928.15,0.00015719,2]
[322940892,1713535883586,-6022.82,0.00015719,2]
[322940893,1713535883595,-3622.76,0.00015719,2]
[322940894,1713535883608,-500.0,0.00015719,2]
[322940895,1713535883618,-12113.02,0.00015719,2]
[322940896,1713535883628,-4147.36,0.00015719,2]
[322940897,1713535883637,-10831.22,0.00015719,2]
[322940898,1713535883648,-4216.37,0.00015719,2]
[322940899,1713535883657,-8530.38,0.00015719,2]
[322940900,1713535883667,-500.0,0.00015719,2]
[322940901,1713535883677,-17399.69,0.00015719,2]
[322940902,1713535883688,-3885.45,0.00015719,2]
[322940903,1713535883698,-4166.13,0.00015719,2]
[322940904,1713535883707,-15747.25,0.00015719,2]
[322940905,1713535883716,-831.31,0.00015719,2]
[322940906,1713535883726,-31097.27,0.00015719,2]
[322940907,1713535883735,-2526.88,0.00015719,2]
[322940908,1713535883744,-10307.68,0.00015719,2]
[322940909,1713535883755,-10339.08,0.00015719,2]
[322940910,1713535883765,-9147.6,0.00015719,2]
[322940911,1713535883775,-4874.02,0.00015719,2]
[322940912,1713535883785,-500.0,0.00015719,2]
[322940913,1713535883796,-3109.85,0.00015719,2]
[322940914,1713535883806,-4832.79,0.00015719,2]
[322940915,1713535883818,-12307.04,0.00015719,2]
[322940916,1713535883827,-8517.97,0.00015719,2]
[322940917,1713535883837,-19162.32,0.00015719,2]
[322940918,1713535883847,-500.0,0.00015719,2]
[322940919,1713535883856,-2052.23,0.00015719,2]
[322940920,1713535883866,-2721.28,0.00015719,2]
[322940921,1713535883875,-4812.2,0.00015719,2]
[322940922,1713535883885,-500.0,0.0001572,2]
[322940923,1713535883894,-500.0,0.0001572,2]
[322940924,1713535883904,-500.0,0.0001572,2]
[322940925,1713535883913,-1256.34,0.0001572,2]
[322940926,1713535883922,-2015.01,0.0001572,2]
[322940927,1713535883932,-500.0,0.0001572,2]
[322940928,1713535883942,-1149.65,0.0001572,2]
[322940929,1713535883952,-500.0,0.0001572,2]
[322940930,1713535883962,-1137.6,0.0001572,2]
[322940931,1713535883971,-500.0,0.0001572,2]
[322940932,1713535883981,-500.0,0.0001572,2]
[322940933,1713535883990,-500.0,0.0001572,2]
[322940934,1713535884000,-1124.18,0.0001572,2]
[322940935,1713535884010,-2664.07,0.0001572,2]
[322940936,1713535884019,-500.0,0.0001572,2]
[322940937,1713535884028,-500.0,0.0001572,2]
[322940938,1713535884038,-3029.39,0.0001572,2]
[322940939,1713535884047,-665.57,0.0001572,2]
[322940940,1713535884057,-801.94,0.0001572,2]
[322940941,1713535884067,-1036.23,0.0001572,2]
[322940942,1713535884075,-931.09,0.0001572,2]
[322940943,1713535884084,-500.0,0.0001572,2]
[322940944,1713535884093,-1570.47,0.0001572,2]
[322940945,1713535884102,-2368.82,0.0001572,2]
[322940946,1713535884112,-500.0,0.0001572,2]
[322940947,1713535884121,-997.98,0.0001572,2]
[322940948,1713535884131,-500.0,0.0001572,2]
[322940949,1713535884140,-2220.63,0.0001572,2]
[322940950,1713535884150,-500.0,0.0001572,2]
[322940951,1713535884159,-500.0,0.0001572,2]
[322940952,1713535884169,-500.0,0.0001572,2]
[322940953,1713535884178,-500.0,0.0001572,2]
[322940954,1713535884188,-2161.61,0.0001572,2]
[322940955,1713535884198,-500.0,0.0001572,2]
[322940956,1713535884208,-3793.8,0.0001572,2]
[322940957,1713535884217,-585.07,0.0001572,2]
[322940958,1713535884227,-500.0,0.0001572,2]
[322940959,1713535884237,-510.92,0.0001572,2]
[322940960,1713535884247,-500.0,0.0001572,2]
[322940961,1713535884256,-3148.54,0.0001572,2]
[322940962,1713535884266,-1402.93,0.0001572,2]
[322940963,1713535884275,-500.0,0.0001572,2]
[322940964,1713535884284,-1589.6,0.0001572,2]
[322940965,1713535884294,-500.0,0.0001572,2]
[322940966,1713535884303,-551.43,0.0001572,2]
[322940967,1713535884313,-4646.9,0.0001572,2]
[322940968,1713535884323,-500.0,0.0001572,2]
[322940969,1713535884333,-2812.43,0.0001572,2]
[322940970,1713535884343,-2003.36,0.0001572,2]
[322940971,1713535884353,-500.0,0.0001572,2]
[322940972,1713535884362,-580.17,0.0001572,2]
[322940973,1713535884371,-840.11,0.0001572,2]
[322940974,1713535884381,-500.0,0.0001572,2]
[322940975,1713535884391,-500.0,0.0001572,2]
[322940976,1713535884400,-1725.14,0.0001572,2]
[322940977,1713535884410,-647.65,0.0001572,2]
[322940978,1713535884420,-1204.49,0.0001572,2]
[322940979,1713535884430,-756.26,0.0001572,2]
[322940980,1713535884440,-500.0,0.0001572,2]
[322940981,1713535884450,-4237.22,0.0001572,2]
[322940982,1713535884459,-1613.07,0.0001572,2]
[322940983,1713535884470,-500.0,0.0001572,2]
[322940984,1713535884479,-500.0,0.0001572,2]
[322940985,1713535884489,-999.76,0.0001572,2]
[322940986,1713535884499,-5139.11,0.0001572,2]
[322940987,1713535884508,-500.0,0.0001572,2]
[322940988,1713535884517,-857.27,0.0001572,2]
[322940989,1713535884527,-500.0,0.0001572,2]
[322940990,1713535884537,-801.44,0.0001572,2]
[322940991,1713535884546,-500.0,0.0001572,2]
[322940992,1713535884556,-3004.32,0.0001572,2]
[322940993,1713535884567,-4097.05,0.0001572,2]
[322940994,1713535884577,-500.0,0.0001572,2]
[322940995,1713535884587,-500.0,0.0001572,2]
[322940996,1713535884597,-729.02,0.0001572,2]
[322940997,1713535884610,-500.0,0.0001572,2]
[322940998,1713535884619,-500.0,0.0001572,2]
[322940999,1713535884628,-500.75,0.0001572,2]
[322941000,1713535884637,-2863.26,0.0001572,2]
[322941001,1713535884648,-3464.11,0.0001572,2]
[322941002,1713535884657,-722.32,0.0001572,2]
[322941003,1713535884666,-1488.66,0.0001572,2]
[322941004,1713535884675,-1035.83,0.0001572,2]
[322941005,1713535884685,-500.0,0.0001572,2]
[322941006,1713535884695,-2428.17,0.0001572,2]
[322941007,1713535884704,-1724.86,0.0001572,2]
[322941008,1713535884712,-1351.6,0.0001572,2]
[322941009,1713535884722,-1341.18,0.0001572,2]
[322941010,1713535884732,-500.0,0.0001572,2]
[322941011,1713535884741,-500.0,0.0001572,2]
[322941012,1713535884750,-749.97,0.0001572,2]
[322941013,1713535884759,-1315.22,0.0001572,2]
[322941014,1713535884768,-691.75,0.0001572,2]
[322941015,1713535884778,-500.0,0.0001572,2]
[322941016,1713535884787,-754.08,0.0001572,2]
[322941017,1713535884796,-500.0,0.0001572,2]
[322941018,1713535884805,-3789.86,0.0001572,2]
[322941019,1713535884815,-1084.1,0.0001572,2]
[322941020,1713535884825,-1325.33,0.0001572,2]
[322941021,1713535884835,-500.0,0.0001572,2]
[322941022,1713535884845,-864.76,0.0001572,2]
[322941023,1713535884855,-755.03,0.0001572,2]
[322941024,1713535884864,-500.0,0.0001572,2]
[322941025,1713535884874,-1284.33,0.0001572,2]
[322941026,1713535884884,-1801.64,0.0001572,2]
[322941027,1713535884894,-500.0,0.0001572,2]
[322941028,1713535884905,-999.93,0.0001572,2]
[322941029,1713535884915,-1227.7,0.0001572,2]
[322941030,1713535884925,-500.0,0.0001572,2]
[322941031,1713535884934,-3417.17,0.0001572,2]
[322941032,1713535884944,-542.61,0.0001572,2]
[322941033,1713535884954,-500.0,0.0001572,2]
[322941034,1713535884963,-2071.34,0.0001572,2]
[322941035,1713535884973,-500.0,0.0001572,2]
[322941036,1713535884982,-1502.04,0.0001572,2]
[322941037,1713535884992,-932.1,0.0001572,2]
[322941038,1713535885001,-500.0,0.0001572,2]
[322941039,1713535885010,-318.75676101,0.0001572,2]
[322941040,1713535885020,-1615.58,0.0001572,2]
[322941041,1713535885036,-151.0,0.0001572,2]
[322941042,1713535885057,-716.0,0.0001572,2]
[322941043,1713535885074,-500.0,0.0001572,2]
[322941044,1713535885095,-1008.46,0.0001572,2]
[322941045,1713535885113,-598.31,0.0001572,2]
[322941046,1713535885130,-500.0,0.0001572,2]
[322941047,1713535885150,-500.0,0.0001572,2]
[322941048,1713535885165,-500.0,0.0001572,2]
[322941049,1713535885186,-827.44,0.0001572,2]
[322941050,1713535885204,-500.0,0.0001572,2]
[322941051,1713535885222,-2578.47,0.0001572,2]
[322941052,1713535885243,-1186.64,0.0001572,2]
[322941053,1713535885261,-500.0,0.0001572,2]
[322941054,1713535885274,-520.67670265,0.0001572,2]
[322941055,1713535885292,-500.0,0.0001572,2]
[322941056,1713535885310,-500.0,0.0001572,2]
[322941057,1713535885328,-991.89,0.0001572,2]
[322941058,1713535885344,-500.0,0.0001572,2]
[322941059,1713535885359,-500.0,0.0001572,2]
[322941060,1713535885375,-500.0,0.0001572,2]
[322941061,1713535885391,-1604.09,0.0001572,2]
[322941062,1713535885408,-3094.82,0.0001572,2]
[322941063,1713535885424,-742.65,0.0001572,2]
[322941064,1713535885440,-500.0,0.0001572,2]
[322941065,1713535885456,-500.0,0.0001572,2]
[322941066,1713535885472,-492.6268877,0.0001572,2]
[322941067,1713535885487,-500.0,0.0001572,2]
[322941068,1713535885503,-868.39,0.0001572,2]
[322941069,1713535885518,-500.0,0.0001572,2]
[322941070,1713535885534,-500.0,0.0001572,2]
[322941071,1713535885551,-1410.74,0.0001572,2]
[322941072,1713535885570,-1811.26,0.0001572,2]
[322941073,1713535885585,-500.0,0.0001572,2]
[322941074,1713535885599,-552.6,0.0001572,2]
[322941075,1713535885617,-2908.9,0.0001572,2]
[322941076,1713535885633,-1547.07,0.0001572,2]
[322941077,1713535885651,-516.05,0.0001572,2]
[322941078,1713535885667,-500.0,0.0001572,2]
[322941079,1713535885685,-500.0,0.0001572,2]
[322941080,1713535885702,-782.08,0.0001572,2]
[322941081,1713535885718,-1183.76,0.0001572,2]
[322941082,1713535885733,-774.4,0.0001572,2]
[322941083,1713535885748,-500.0,0.0001572,2]
[322941084,1713535885764,-500.0,0.0001572,2]
[322941085,1713535885781,-500.0,0.0001572,2]
[322941086,1713535885798,-903.17,0.0001572,2]
[322941087,1713535885813,-500.0,0.0001572,2]
[322941088,1713535885832,-2298.11,0.0001572,2]
[322941089,1713535885847,-978.58,0.0001572,2]
[322941090,1713535885863,-2334.57,0.0001572,2]
[322941091,1713535885878,-3374.87,0.0001572,2]
[322941092,1713535885893,-500.0,0.0001572,2]
[322941093,1713535885908,-1014.08,0.0001572,2]
[322941094,1713535885925,-500.0,0.0001572,2]
[322941095,1713535885940,-1359.3,0.0001572,2]
[322941096,1713535885955,-2018.16,0.0001572,2]
[322941097,1713535885971,-500.0,0.0001572,2]
[322941098,1713535885986,-1637.81,0.0001572,2]
[322941099,1713535886001,-500.0,0.0001572,2]
[322941100,1713535886017,-500.0,0.0001572,2]
[322941101,1713535886041,-500.0,0.0001572,2]
[322941102,1713535886056,-1971.56,0.0001572,2]
[322941103,1713535886071,-1145.46,0.0001572,2]
[322941104,1713535886086,-5560.1,0.0001572,2]
[322941105,1713535886102,-2291.26,0.0001572,2]
[322941106,1713535886117,-1529.74,0.0001572,2]
[322941107,1713535886132,-500.0,0.0001572,2]
[322941108,1713535886147,-500.0,0.0001572,2]
[322941109,1713535886163,-500.0,0.0001572,2]
[322941110,1713535886178,-1163.0,0.0001572,2]
[322941111,1713535886194,-950.14,0.0001572,2]
[322941112,1713535886209,-500.0,0.0001572,2]
[322941113,1713535886223,-594.21,0.0001572,2]
[322941114,1713535886240,-281.56950496,0.0001572,2]
[322941115,1713535886256,-517.6,0.0001572,2]
[322941116,1713535886272,-500.0,0.0001572,2]
[322941117,1713535886287,-500.0,0.0001572,2]
[322941118,1713535886304,-619.3,0.0001572,2]
[322941119,1713535886320,-500.0,0.0001572,2]
[322941120,1713535886337,-712.46,0.0001572,2]
[322941121,1713535886352,-693.94,0.0001572,2]
[322941122,1713535886368,-1133.39,0.0001572,2]
[322941123,1713535886383,-833.04,0.0001572,2]
[322941124,1713535886399,-2162.58,0.0001572,2]
[322941125,1713535886414,-500.0,0.0001572,2]
[322941126,1713535886430,-5267.24,0.0001572,2]
[322941127,1713535886445,-1879.43,0.0001572,2]
[322941128,1713535886460,-1106.88,0.0001572,2]
[322941129,1713535886476,-713.55,0.0001572,2]
[322941130,1713535886491,-500.0,0.0001572,2]
[322941131,1713535886507,-500.0,0.0001572,2]
[322941132,1713535886523,-2106.2,0.0001572,2]
[322941133,1713535886538,-537.58734637,0.0001572,2]
[322941134,1713535886554,-1460.57,0.0001572,2]
[322941135,1713535886571,-500.0,0.0001572,2]
[322941136,1713535886585,-500.0,0.0001572,2]
[322941137,1713535886601,-341.14,0.0001572,2]
[322941138,1713535886620,-500.0,0.0001572,2]
[322941139,1713535886635,-1246.63,0.0001572,2]
[322941140,1713535886652,-3217.97,0.0001572,2]
[322941141,1713535886667,-891.12,0.0001572,2]
[322941142,1713535886683,-500.0,0.0001572,2]
[322941143,1713535886699,-500.0,0.0001572,2]
[322941144,1713535886714,-504.8,0.0001572,2]
[322941145,1713535886730,-500.0,0.0001572,2]
[322941146,1713535886746,-500.0,0.0001572,2]
[322941147,1713535886762,-500.0,0.0001572,2]
[322941148,1713535886778,-830.87,0.0001572,2]
[322941149,1713535886794,-1048.12,0.0001572,2]
[322941150,1713535886810,-509.72,0.0001572,2]
[322941151,1713535886827,-975.66,0.0001572,2]
[322941152,1713535886842,-1798.67,0.0001572,2]
[322941153,1713535886859,-500.0,0.0001572,2]
[322941154,1713535886875,-500.0,0.0001572,2]
[322941155,1713535886891,-1934.62,0.0001572,2]
[322941156,1713535886907,-5247.18,0.0001572,2]
[322941157,1713535886923,-1857.03,0.0001572,2]
[322941158,1713535886939,-1843.98,0.0001572,2]
[322941159,1713535886956,-500.0,0.0001572,2]
[322941160,1713535886971,-1291.52,0.0001572,2]
[322941161,1713535886987,-500.0,0.0001572,2]
[322941162,1713535887003,-500.0,0.0001572,2]
[322941163,1713535887019,-15480.63,0.0001572,2]
[322941164,1713535887034,-849.57,0.0001572,2]
[322941165,1713535887049,-998.12,0.0001572,2]
[322941166,1713535887065,-337.42685297,0.0001572,2]
[322941167,1713535887082,-670.98,0.0001572,2]
[322941168,1713535887098,-4624.68,0.0001572,2]
[322941169,1713535887113,-2760.35,0.0001572,2]
[322941170,1713535887128,-500.0,0.0001572,2]
[322941171,1713535887144,-500.0,0.0001572,2]
[322941172,1713535887160,-500.0,0.0001572,2]
[322941173,1713535887174,-2331.47,0.0001572,2]
[322941174,1713535887189,-13562.06,0.0001572,2]
[322941175,1713535887204,-666.01,0.0001572,2]
[322941176,1713535887219,-913.31,0.0001572,2]
[322941177,1713535887236,-500.0,0.0001572,2]
[322941178,1713535887252,-500.0,0.0001572,2]
[322941179,1713535887266,-500.0,0.0001572,2]
[322941180,1713535887281,-724.4,0.0001572,2]
[322941181,1713535887296,-500.0,0.0001572,2]
[322941182,1713535887312,-500.0,0.0001572,2]
[322941183,1713535887329,-2634.21,0.0001572,2]
[322941184,1713535887344,-7003.47,0.0001572,2]
[322941185,1713535887359,-500.0,0.0001572,2]
[322941186,1713535887374,-500.0,0.0001572,2]
[322941187,1713535887389,-500.0,0.0001572,2]
[322941188,1713535887405,-842.1,0.0001572,2]
[322941189,1713535887421,-1709.83,0.0001572,2]
[322941190,1713535887438,-3554.74,0.0001572,2]
[322941191,1713535887453,-500.0,0.0001572,2]
[322941192,1713535887469,-500.0,0.0001572,2]
[322941193,1713535887485,-1276.41,0.0001572,2]
[322941194,1713535887501,-1881.59,0.0001572,2]
[322941195,1713535887517,-660.64,0.0001572,2]
[322941196,1713535887532,-500.0,0.0001572,2]
[322941197,1713535887548,-500.0,0.0001572,2]
[322941198,1713535887563,-591.99,0.0001572,2]
[322941199,1713535887583,-11830.29,0.0001572,2]
[322941200,1713535887598,-518.61,0.0001572,2]
[322941201,1713535887616,-500.0,0.0001572,2]
[322941202,1713535887631,-500.0,0.0001572,2]
[322941203,1713535887647,-596.19,0.0001572,2]
[322941204,1713535887662,-500.0,0.0001572,2]
[322941205,1713535887677,-1586.61,0.0001572,2]
[322941206,1713535887693,-500.0,0.0001572,2]
[322941207,1713535887708,-500.0,0.0001572,2]
[322941208,1713535887722,-21084.37,0.0001572,2]
[322941209,1713535888076,-501.63,0.0001572,2]
[322941210,1713535888112,-500.0,0.0001572,2]
[322941211,1713535888133,-4168.67,0.0001572,2]
[322941212,1713535888142,-500.0,0.0001572,2]
[322941213,1713535888151,-1051.59,0.0001572,2]
[322941214,1713535888160,-1632.93,0.0001572,2]
[322941215,1713535888170,-745.68,0.0001572,2]
[322941216,1713535888179,-1278.38,0.0001572,2]
[322941217,1713535888188,-624.95,0.0001572,2]
[322941218,1713535888198,-807.02,0.0001572,2]
[322941219,1713535888207,-102471.52,0.0001572,2]
[322941220,1713535888217,-500.0,0.0001572,2]
[322941221,1713535888227,-2794.61,0.0001572,2]
[322941222,1713535888236,-2514.92,0.0001572,2]
[322941223,1713535888245,-2394.7,0.0001572,2]
[322941224,1713535888255,-807.66,0.0001572,2]
[322941225,1713535888264,-500.0,0.0001572,2]
[322941226,1713535888273,-500.0,0.0001572,2]
[322941227,1713535888282,-4623.15,0.0001572,2]
[322941228,1713535888291,-500.0,0.0001572,2]
[322941229,1713535888301,-1840.41,0.0001572,2]
[322941230,1713535888311,-1421.71,0.0001572,2]
[322941231,1713535888320,-1165.58,0.0001572,2]
[322941232,1713535888329,-500.0,0.0001572,2]
[322941233,1713535888339,-500.0,0.0001572,2]
[322941234,1713535888348,-5682.43,0.0001572,2]
[322941235,1713535888358,-500.0,0.0001572,2]
[322941236,1713535888367,-509.63204737,0.0001572,2]
[322941237,1713535888377,-500.0,0.0001572,2]
[322941238,1713535888387,-1198.64,0.0001572,2]
[322941239,1713535888396,-1146.28,0.0001572,2]
[322941240,1713535888406,-7698.24,0.0001572,2]
[322941241,1713535888417,-638.93,0.0001572,2]
[322941242,1713535888427,-1719.9,0.0001572,2]
[322941243,1713535888438,-500.88739766,0.0001572,2]
[322941244,1713535888449,-5472.51,0.0001572,2]
[322941245,1713535888459,-1577.17,0.0001572,2]
[322941246,1713535888469,-500.0,0.0001572,2]
[322941247,1713535888479,-8996.02,0.0001572,2]
[322941248,1713535888489,-552.22,0.0001572,2]
[322941249,1713535888499,-500.0,0.0001572,2]
[322941250,1713535888508,-1200.96,0.0001572,2]
[322941251,1713535888518,-500.0,0.0001572,2]
[322941252,1713535888527,-2212.07,0.0001572,2]
[322941253,1713535888536,-636.57,0.0001572,2]
[322941254,1713535888546,-500.0,0.0001572,2]
[322941255,1713535888555,-500.0,0.0001572,2]
[322941256,1713535888565,-500.0,0.0001572,2]
[322941257,1713535888581,-4721.47,0.0001572,2]
[322941258,1713535888590,-503.47149608,0.0001572,2]
[322941259,1713535888599,-500.0,0.0001572,2]
[322941260,1713535888613,-6115.97,0.0001572,2]
[322941261,1713535888623,-500.0,0.0001572,2]
[322941262,1713535888633,-672.48,0.0001572,2]
[322941263,1713535888643,-500.0,0.0001572,2]
[322941264,1713535888654,-4199.06,0.0001572,2]
[322941265,1713535888663,-500.0,0.0001572,2]
[322941266,1713535888672,-522.38,0.0001572,2]
[322941267,1713535888682,-500.0,0.0001572,2]
[322941268,1713535888691,-6854.52,0.0001572,2]
[322941269,1713535888700,-1135.7,0.0001572,2]
[322941270,1713535888709,-1678.26,0.0001572,2]
[322941271,1713535888719,-526.39,0.0001572,2]
[322941272,1713535888729,-1417.59,0.0001572,2]
[322941273,1713535888738,-500.0,0.0001572,2]
[322941274,1713535888747,-500.0,0.0001572,2]
[322941275,1713535888757,-500.0,0.0001572,2]
[322941276,1713535888766,-5358.08,0.0001572,2]
[322941277,1713535888775,-4597.56,0.0001572,2]
[322941278,1713535888784,-1005.95,0.0001572,2]
[322941279,1713535888793,-5312.02,0.0001572,2]
[322941280,1713535888802,-18297.04,0.0001572,2]
[322941281,1713535888812,-500.0,0.0001572,2]
[322941282,1713535888824,-616.64,0.0001572,2]
[322941283,1713535888834,-666.34,0.0001572,2]
[322941284,1713535888844,-2797.58,0.0001572,2]
[322941285,1713535888853,-1186.54,0.0001572,2]
[322941286,1713535888862,-743.09,0.0001572,2]
[322941287,1713535888872,-738.1,0.0001572,2]
[322941288,1713535888881,-5190.07,0.0001572,2]
[322941289,1713535888890,-715.48,0.0001572,2]
[322941290,1713535888900,-1077.85,0.0001572,2]
[322941291,1713535888909,-500.0,0.0001572,2]
[322941292,1713535888918,-4252.03,0.0001572,2]
[322941293,1713535888928,-1295.04,0.0001572,2]
[322941294,1713535888938,-1314.58,0.0001572,2]
[322941295,1713535888948,-513.91,0.0001572,2]
[322941296,1713535888957,-948.21,0.0001572,2]
[322941297,1713535888967,-500.0,0.0001572,2]
[322941298,1713535888976,-500.0,0.0001572,2]
[322941299,1713535888985,-338.19972773,0.0001572,2]
[322941300,1713535888995,-2058.08,0.0001572,2]
[322941301,1713535889005,-1092.57,0.0001572,2]
[322941302,1713535889017,-1632.01,0.0001572,2]
[322941303,1713535889026,-772.82,0.0001572,2]
[322941304,1713535889035,-1368.24,0.0001572,2]
[322941305,1713535889046,-500.0,0.0001572,2]
[322941306,1713535889056,-3270.6,0.0001572,2]
[322941307,1713535889065,-500.0,0.0001572,2]
[322941308,1713535889078,-1336.22,0.0001572,2]
[322941309,1713535889087,-6888.91,0.0001572,2]
[322941310,1713535889096,-500.0,0.0001572,2]
[322941311,1713535889106,-500.0,0.0001572,2]
[322941312,1713535889115,-415.83437535,0.0001572,2]
[322941313,1713535889124,-1221.36,0.0001572,2]
[322941314,1713535889133,-500.0,0.0001572,2]
[322941315,1713535889142,-3213.91,0.0001572,2]
[322941316,1713535889151,-500.0,0.0001572,2]
[322941317,1713535889161,-500.0,0.0001572,2]
[322941318,1713535889171,-8830.11,0.0001572,2]
[322941319,1713535889180,-500.0,0.0001572,2]
[322941320,1713535889189,-383.70964537,0.0001572,2]
[322941321,1713535889197,-1595.0,0.0001572,2]
[322941322,1713535889206,-2162.76,0.0001572,2]
[322941323,1713535889215,-500.0,0.0001572,2]
[322941324,1713535889224,-1091.99,0.0001572,2]
[322941325,1713535889233,-500.0,0.0001572,2]
[322941326,1713535889242,-500.0,0.0001572,2]
[322941327,1713535889252,-844.02,0.0001572,2]
[322941328,1713535889261,-977.92,0.0001572,2]
[322941329,1713535889271,-6610.26,0.0001572,2]
[322941330,1713535889281,-12410.2,0.0001572,2]
[322941331,1713535889294,-500.0,0.0001572,2]
[322941332,1713535889305,-500.0,0.0001572,2]
[322941333,1713535889316,-766.81,0.0001572,2]
[322941334,1713535889327,-500.0,0.0001572,2]
[322941335,1713535889337,-8471.72,0.0001572,2]
[322941336,1713535889346,-16804.52,0.0001572,2]
[322941337,1713535889355,-500.0,0.0001572,2]
[322941338,1713535889365,-3856.78,0.0001572,2]
[322941339,1713535889374,-1195.15,0.0001572,2]
[322941340,1713535889383,-500.0,0.0001572,2]
[322941341,1713535889393,-1131.0,0.0001572,2]
[322941342,1713535889402,-1042.76,0.0001572,2]
[322941343,1713535889411,-1809.28,0.0001572,2]
[322941344,1713535889420,-500.0,0.0001572,2]
[322941345,1713535889429,-586.09,0.0001572,2]
[322941346,1713535889438,-500.0,0.00015721,2]
[322941347,1713535889447,-666.6,0.00015721,2]
[322941348,1713535889456,-1978.3,0.00015721,2]
[322941349,1713535889465,-2010.16,0.00015721,2]
[322941350,1713535889475,-2635.8,0.00015721,2]
[322941351,1713535889484,-2063.33,0.00015721,2]
[322941352,1713535889493,-3414.14,0.00015721,2]
[322941353,1713535889502,-3118.43,0.00015721,2]
[322941354,1713535889511,-2239.17,0.00015721,2]
[322941355,1713535889521,-3303.18,0.00015721,2]
[322941356,1713535889530,-2382.91,0.00015721,2]
[322941357,1713535889539,-893.25,0.00015721,2]
[322941358,1713535889549,-1654.92,0.00015721,2]
[322941359,1713535889558,-500.0,0.00015721,2]
[322941360,1713535889567,-2444.46,0.00015721,2]
[322941361,1713535889579,-500.0,0.00015721,2]
[322941362,1713535889589,-500.0,0.00015721,2]
[322941363,1713535889599,-944.2,0.00015721,2]
[322941364,1713535889610,-2665.73,0.00015721,2]
[322941365,1713535889619,-1302.7,0.00015721,2]
[322941366,1713535889628,-3681.3,0.00015721,2]
[322941367,1713535889637,-1964.51,0.00015721,2]
[322941368,1713535889647,-2547.0,0.00015721,2]
[322941369,1713535889657,-2967.73,0.00015721,2]
[322941370,1713535889666,-2335.23,0.00015721,2]
[322941371,1713535889675,-1307.99,0.00015721,2]
[322941372,1713535889686,-1016.31,0.00015721,2]
[322941373,1713535889696,-1727.93,0.00015721,2]
[322941374,1713535889706,-1260.39,0.00015721,2]
[322941375,1713535889715,-1632.79,0.00015721,2]
[322941376,1713535889724,-2550.36,0.00015721,2]
[322941377,1713535889733,-500.0,0.00015721,2]
[322941378,1713535889742,-2443.63,0.00015721,2]
[322941379,1713535889751,-2630.72,0.00015721,2]
[322941380,1713535889761,-3003.61,0.00015721,2]
[322941381,1713535889770,-382.94405501,0.00015721,2]
[322941382,1713535889779,-1886.41,0.00015721,2]
[322941383,1713535889789,-3017.64,0.00015721,2]